fUST/lending_fUST_20240419
["ID","MTS","AMOUNT","RATE_DAILY","PERIOD"]
[322936798,1713535503750,-300.0,0.00021063,2]
[322936799,1713535503771,-361.75151942,0.00021063,2]
[322936800,1713535503796,-549.90202406,0.00021063,2]
[322936801,1713535503818,-193.45780411,0.00021063,2]
[322936802,1713535503840,-2585.8857477,0.00021064,2]
[322936803,1713535503861,-1549.5887261,0.00021064,2]
[322936804,1713535503882,-769.52646962,0.00021067,2]
[322936805,1713535503902,-525.52773171,0.00021067,2]
[322936806,1713535503923,-329.39846217,0.00021067,2]
[322936807,1713535503944,-231.46995017,0.00021067,2]
[322936808,1713535503964,-24846.49156494,0.00021067,2]
[322936809,1713535535543,-469.26939572,0.00021062,2]
[322936810,1713535535567,-361.28301931,0.00021065,2]
[322936811,1713535535587,-329.39846217,0.00021065,2]
[322936812,1713535535608,-154.90705577,0.00021066,2]
[322936813,1713535535630,-370.20981996,0.00021066,2]
[322936814,1713535535651,-272.33447526,0.00021066,2]
[322936815,1713535535672,-155.52551261,0.00021067,2]
[322936816,1713535535694,-4590.0722592,0.00021067,2]
[322936817,1713535562658,-667.99263696,0.00021066,2]
[322936818,1713535562678,-157.43794473,0.00021067,2]
[322936819,1713535562698,-633.77906979,0.00021067,2]
[322936820,1713535562718,-1576.32789394,0.00021068,2]
[322936821,1713535562738,-300.0,0.00021068,2]
[322936822,1713535562759,-687.6463722,0.00021068,2]
[322936823,1713535562779,-6923.51821649,0.00021069,2]
[322936824,1713535562800,-483.29786589,0.0002107,2]
[322936825,1713535563257,150.0,0.00018967,2]
[322936826,1713535569677,4849.1357778,0.00024,7]
[322936827,1713535615983,189.587624,0.00020296,2]
[322936828,1713535633549,250.0,0.00020068,2]
[322936829,1713535737174,166.58727621,0.00022,30]
[322936834,1713535749404,169.26758099,0.00020956,2]
[322936837,1713535798480,150.8642222,0.00022906,30]
[322936838,1713535798539,150.8642222,0.00022448,120]
[322936839,1713535819006,19436.68760185,0.00020949,2]
[322936871,1713535832238,-186.06822211,0.00021048,2]
[322936873,1713535832248,-469.26939572,0.00021048,2]
[322936875,1713535832256,-193.45780411,0.00021049,2]
[322936877,1713535832267,-161.90783343,0.00021049,2]
[322936879,1713535832277,-564.09332327,0.0002105,2]
[322936881,1713535832286,-329.39846217,0.00021051,2]
[322936883,1713535832296,-300.0,0.00021051,2]
[322936884,1713535832305,-7861.03845774,0.00021052,2]
[322936885,1713535832314,-300.0,0.00021056,2]
[322936886,1713535832324,-164.86900124,0.00021067,2]
[322936888,1713535832333,-361.75151942,0.00021067,2]
[322936889,1713535832343,-526.90240112,0.00021067,2]
[322936891,1713535832352,-1201.28235502,0.00021068,2]
[322936893,1713535832362,-72510.41728967,0.00021069,2]
[322936895,1713535832371,-24416.70213411,0.0002107,2]
[322936897,1713535832381,-1557.24218285,0.00021356,2]
[322936900,1713535832390,-307.57485826,0.00021379,2]
[322936901,1713535832400,-15951.28633258,0.0002138,2]
[322936904,1713535832416,-743.56814402,0.0002138,2]
[322936924,1713535838293,-207.7309784,0.00021047,2]
[322936925,1713535838302,-329.39846217,0.00021047,2]
[322936926,1713535838311,-1314.42513366,0.00021048,2]
[322936927,1713535838320,-42530.41323353,0.0002138,2]
[322936928,1713535838329,-158.92745084,0.00022,2]
[322936929,1713535838339,-420.0,0.00022898,2]
[322936930,1713535838348,-420.0,0.00023162,2]
[322936931,1713535838357,-3112.02308451,0.00023175,2]
[322936932,1713535838366,-150.8642222,0.00023373,7]
[322936933,1713535838375,-150.8642222,0.0002385,4]
[322936934,1713535838384,-150.0,0.00023967,2]
[322936935,1713535838393,-27393.9719279,0.00024,7]
[322936936,1713535838402,-150.8642222,0.00024337,2]
[322936937,1713535838411,-200.0,0.00024658,2]
[322936938,1713535838420,-200.0,0.00024658,15]
[322936939,1713535838429,-587.0,0.00025478,2]
[322936940,1713535838438,-8510.41889157,0.00027,2]
[322936941,1713535838447,-150.8642222,0.00027041,2]
[322936942,1713535838456,-250.26564092,0.00027041,2]
[322936943,1713535838465,-500.0,0.00027397,2]
[322936944,1713535838474,-463.35416344,0.00027397,2]
[322936945,1713535838484,-219.736638,0.00027397,2]
[322936946,1713535838493,-3707.6570454,0.00027397,2]
[322936947,1713535838502,-159.309551,0.00027397,2]
[322936948,1713535838511,-755.80206996,0.000274,2]
[322936949,1713535838520,-301.7284444,0.00027496,4]
[322936950,1713535838532,-603.4568888,0.00027958,7]
[322936951,1713535838541,-823.0,0.00028026,2]
[322936952,1713535838551,-166.84376062,0.00028428,4]
[322936953,1713535838560,-1206.9137776,0.00028666,30]
[322936954,1713535838570,-5319.61477429,0.00029,2]
[322936955,1713535838581,-930.07258122,0.0003,4]
[322936956,1713535838592,-189.587624,0.00030444,2]
[322936957,1713535838603,-1152.0,0.00030828,2]
[322936958,1713535838613,-350.42643964,0.00031,4]
[322936959,1713535838622,-191.2801184,0.00032,4]
[322936960,1713535838631,-605.16066586,0.00033,4]
[322936962,1713535838642,-219.736638,0.00033165,2]
[322936964,1713535838651,-1613.0,0.00033911,2]
[322936965,1713535838660,-465.76981599,0.00034,4]
[322936967,1713535838669,-2180.90410884,0.00034081,2]
[322936969,1713535838678,-8097.825529,0.00034091,3]
[322936971,1713535838689,-199.2891692,0.00034169,4]
[322936973,1713535838698,-569.64453092,0.0003417,2]
[322936974,1713535838707,-712.32598353,0.00034171,4]
[322936976,1713535838716,-2584.00603942,0.00034171,4]
[322936978,1713535838725,-419.46578638,0.00034171,4]
[322936980,1713535838734,-11768.8269598,0.00034171,60]
[322936981,1713535838743,-2477.16595612,0.00034171,4]
[322936983,1713535838752,-2185.77262581,0.00034171,4]
[322936985,1713535838761,-2622.05694045,0.00034172,4]
[322936987,1713535838770,-329.47,0.0003418,2]
[322936989,1713535838781,-329.47,0.0003418,2]
[322936991,1713535838791,-329.47,0.0003418,2]
[322936993,1713535838800,-329.47,0.0003418,2]
[322936995,1713535838810,-26673.09809646,0.0003418,5]
[322936997,1713535838819,-294731.96990627,0.00034181,14]
[322936999,1713535838830,-44459.61009333,0.00034181,14]
[322937001,1713535838840,-29363.501573,0.00034181,30]
[322937003,1713535838849,-478.2499521,0.00034181,30]
[322937037,1713535840369,-302.24592088,0.00034181,30]
[322937038,1713535840378,-5490.14695756,0.00034181,30]
[322937039,1713535840388,-837.33655983,0.00034181,120]
[322937040,1713535840397,-1697.53009775,0.00034181,2]
[322937041,1713535840406,-4907.74046398,0.00034181,30]
[322937418,1713535846872,-826.62813506,0.0003418,2]
[322947081,1713536112895,-329.39846217,0.00021359,2]
[322947082,1713536112923,-283.08369263,0.0002136,2]
[322947083,1713536112951,-767.39052551,0.0002136,5]
[322947084,1713536112977,-667.99263696,0.0002136,2]
[322947085,1713536113010,-161.90783343,0.00021361,2]
[322947086,1713536113038,-1089.6608071,0.00021361,2]
[322947087,1713536113066,-2126.51224034,0.00021362,2]
[322947088,1713536113095,-300.0,0.00021373,2]
[322947089,1713536113122,-300.0,0.00021374,2]
[322947090,1713536113149,-26394.05380186,0.00021375,2]
[322947091,1713536118881,-16136.35943167,0.00021375,2]
[322947092,1713536118908,-539.22318272,0.00021376,2]
[322947093,1713536118933,-236.30551311,0.00021376,2]
[322947094,1713536118959,-408.43488901,0.00021376,2]
[322947095,1713536118984,-519.26461656,0.00021376,2]
[322947096,1713536119011,-14580.41236693,0.00021376,2]
[322947097,1713536122127,-32420.0,0.00021376,2]
[322947098,1713536124434,-2125.01896532,0.00021375,2]
[322947099,1713536124461,-308.51754491,0.00021375,2]
[322947100,1713536124488,-18995.17333797,0.00021376,2]
[322947101,1713536124520,-2622.05694045,0.00021376,2]
[322947102,1713536124544,-199.2891692,0.00021376,2]
[322947103,1713536124569,-419.46578638,0.00021376,2]
[322947104,1713536124594,-2584.00603942,0.00021376,2]
[322947105,1713536124627,-712.32598353,0.00021376,2]
[322947106,1713536124657,-2477.16595612,0.00021377,2]
[322947107,1713536124685,-158.92745084,0.00022,2]
[322947108,1713536124711,-420.0,0.00023241,2]
[322947109,1713536124738,-420.0,0.0002351,2]
[322947110,1713536125779,978.05282586,0.0002324,2]
[322947111,1713536142051,-561.09040185,0.00021374,2]
[322947112,1713536142079,-371.15391006,0.00021375,5]
[322947113,1713536142106,-110.80780228,0.0002324,2]
[322947114,1713536142131,-282.76062599,0.0002324,2]
[322947115,1713536142156,-329.39846217,0.0002324,2]
[322947116,1713536142181,-1667.815175,0.00023378,2]
[322947117,1713536160285,-22322.6940527,0.00024658,10]
[322947118,1713536160721,300.0,0.00024657,2]
[322947119,1713536409215,150.87929656,0.00023038,30]
[322947120,1713536409295,150.87929656,0.00022577,120]
[322947295,1713537033765,150.87929656,0.00022454,30]
[322947303,1713537033830,150.87929656,0.00022005,120]
[322947763,1713537038637,-1489.22314453,0.00022548,2]
[322947764,1713537038646,-203.68217951,0.00022549,2]
[322947766,1713537038761,-5797.00010816,0.00022549,2]
[322947768,1713537038776,-1576.32789394,0.00022549,2]
[322947770,1713537038785,-977.06231715,0.0002255,2]
[322947772,1713537038795,-469.26939572,0.0002255,2]
[322947774,1713537038804,-329.39846217,0.00022551,2]
[322947776,1713537038813,-300.0,0.00022552,2]
[322947778,1713537038822,-31273.83103706,0.00022552,2]
[322947780,1713537038831,-4405.99951717,0.00022553,2]
[322947782,1713537038840,-247.91102125,0.00022558,2]
[322947784,1713537038849,-968.72886539,0.00022577,2]
[322947786,1713537038858,-2311.45498559,0.00022577,2]
[322947788,1713537038867,-150.87929656,0.00022912,7]
[322947790,1713537038876,-150.87929656,0.0002338,4]
[322947792,1713537038885,-169.26758099,0.00023408,2]
[322947794,1713537038894,-150.87929656,0.00023857,2]
[322947796,1713537038903,-1199.82523717,0.00024557,2]
[322947798,1713537038912,-420.0,0.00024807,2]
[322947800,1713537038921,-154.8915759,0.00025335,2]
[322947802,1713537038931,-1089.26071762,0.00025335,2]
[322947804,1713537038940,-246.93293796,0.00025335,2]
[322947806,1713537038957,-400.0,0.00025335,2]
[322947808,1713537038967,-157.63770947,0.00025336,2]
[322947810,1713537038976,-309.75219824,0.00025336,2]
[322947812,1713537038985,-1934.55003292,0.00025337,2]
[322947814,1713537038994,-539.43970623,0.00025337,2]
[322947816,1713537039006,-161.90783343,0.00025337,2]
[322947818,1713537039015,-888.43676539,0.00025337,2]
[322947820,1713537039024,-361.75151942,0.00025337,2]
[322947822,1713537039034,-1223.16,0.00025338,2]
[322947824,1713537039042,-24900.0,0.00025339,2]
[322947825,1713537039052,-4547.4054348,0.00025496,2]
[322947827,1713537039061,-200.0,0.00025781,15]
[322947829,1713537039070,-189.587625,0.00025843,2]
[322947831,1713537039079,-200.0,0.00025986,2]
[322947833,1713537039088,-150.87929656,0.00026508,2]
[322947835,1713537039101,-250.29064748,0.00026508,2]
[322947837,1713537039110,-165.938512,0.0002671,2]
[322947839,1713537039119,-1130.2267053,0.00026916,2]
[322947840,1713537039130,-301.75859313,0.00026953,4]
[322947841,1713537039139,-8510.41889157,0.00027,2]
[322947842,1713537039149,-587.0,0.00027288,2]
[322947843,1713537039158,-500.0,0.00027397,2]
[322947844,1713537039167,-463.35416344,0.00027397,2]
[322947846,1713537039177,-199.594278,0.00027397,2]
[322947848,1713537039186,-209.043477,0.00027397,2]
[322947849,1713537039198,-932.9128092,0.00027397,2]
[322947850,1713537039206,-10000.0,0.00027397,2]
[322947851,1713537039216,-157.6904657,0.00027397,2]
[322947852,1713537039224,-603.51718625,0.00027406,7]
[322947853,1713537039234,-247.91102125,0.00027558,2]
[322947854,1713537039243,-166.86043165,0.00027867,4]
[322947855,1713537039252,-1207.0343725,0.000281,30]
[322947856,1713537039261,-309.61302161,0.00028316,2]
[322947857,1713537039270,-24153.63852002,0.00028316,2]
[322947858,1713537039279,-882.33479028,0.00028317,2]
[322947859,1713537039288,-930.07258122,0.0003,4]
[322947860,1713537039297,-823.0,0.00030017,2]
[322947861,1713537039306,-350.42643964,0.00031,4]
[322947862,1713537039315,-221.76571967,0.00031996,2]
[322947863,1713537039325,-191.2801184,0.00032,4]
[322947864,1713537039334,-247.91102125,0.00032558,2]
[322947865,1713537039343,-605.16066586,0.00033,4]
[322947866,1713537039352,-1997.54878906,0.00033,30]
[322947867,1713537039361,-1152.0,0.00033018,2]
[322947868,1713537039370,-209.043477,0.00033165,2]
[322947869,1713537039379,-176.34019978,0.000339,2]
[322947870,1713537039388,-1138.04,0.0003399,3]
[322947871,1713537039398,-948.37,0.0003399,3]
[322947872,1713537039407,-790.31,0.0003399,3]
[322947873,1713537039416,-658.59,0.0003399,3]
[322947874,1713537039425,-11768.8269598,0.00034,60]
[322947875,1713537039434,-465.76981599,0.00034,4]
[322947876,1713537039447,-2414.068745,0.00034036,120]
[322947877,1713537039456,-9768.01113341,0.0003408,2]
[322947878,1713537039465,-159.21651473,0.00034158,4]
[322947879,1713537039474,-30867.15730158,0.00034161,30]
[322947880,1713537039484,-202.21989934,0.00034161,30]
[322947881,1713537039493,-26845.77930363,0.00034161,30]
[322947882,1713537039502,-206.9232172,0.00034179,4]
[322947883,1713537039512,-844.0528946,0.00034179,4]
[322947884,1713537039521,-7548.01271352,0.0003418,2]
[322947885,1713537039530,-370.63536076,0.0003418,4]
[322947886,1713537039539,-397.80841471,0.0003418,4]
[322947887,1713537039549,-755.80206996,0.0003418,4]
[322947888,1713537039558,-27393.9719279,0.0003418,60]
[322947889,1713537039568,-155.67071799,0.00034189,4]
[322947890,1713537039578,-189.00549416,0.00034189,2]
[322947891,1713537039588,-156.07369654,0.00034189,4]
[322947892,1713537039597,-354.39971412,0.00034189,4]
[322947893,1713537039606,-232.22195338,0.00034189,4]
[322947894,1713537039616,-217.02542461,0.00034189,4]
[322947895,1713537039626,-232.98538348,0.00034189,2]
[322947896,1713537039635,-277.60171443,0.00034189,4]
[322947897,1713537039644,-521.11578243,0.00034189,4]
[322947898,1713537039653,-596.30720592,0.00034189,4]
[322947899,1713537039663,-154.87609912,0.00035,15]
[322947900,1713537039672,-154.87609912,0.00035,4]
[322947901,1713537039681,-6878.54444506,0.00035,4]
[322947902,1713537039691,-597.42560339,0.00035,2]
[322947903,1713537039703,-5304.47781307,0.00035,30]
[322947904,1713537039713,-545.314152,0.00035616,120]
[322947905,1713537039722,-1613.0,0.0003632,2]
[322947906,1713537039731,-159.309551,0.0003653,2]
[322947907,1713537039741,-2924.56553642,0.00037,2]
[322947908,1713537039751,-153.25469597,0.00038164,7]
[322947909,1713537039760,-219.736638,0.00038933,2]
[322947910,1713537039769,-209.043477,0.00038933,2]
[322947911,1713537039779,-150.87929656,0.00039761,2]
[322947912,1713537039788,-2258.0,0.00039952,3]
[322947913,1713537039798,-5312.20178267,0.0004,4]
[322947914,1713537039807,-2000.0,0.0004,120]
[322947915,1713537039818,-155.25597968,0.0004,2]
[322947916,1713537039827,-26128.725713,0.0004013,2]
[322947917,1713537039836,-150.278,0.0004042,2]
[322947918,1713537039846,-203.3901934,0.00040983,2]
[322947919,1713537039855,-203.3901934,0.00040983,2]
[322947920,1713537039864,-203.3901934,0.00040983,2]
[322947921,1713537039873,-153.0,0.00040993,2]
[322947922,1713537039888,-2800.0,0.00041,12]
[322947923,1713537039901,-197.08852906,0.00041096,2]
[322947924,1713537039913,-399.9278301,0.000411,4]
[322947925,1713537039925,-156.67054002,0.0004151,30]
[322947926,1713537039937,-545.314152,0.00041553,120]
[322947927,1713537039952,-153.25469597,0.00041906,30]
[322947928,1713537039962,-443.91080819,0.00042,120]
[322947930,1713537039973,-1281.51337426,0.00042,120]
[322947931,1713537039985,-2715.36,0.00042,2]
[322947932,1713537039996,-153.25469597,0.00042376,30]
[322947933,1713537040007,-518.77022475,0.000424,120]
[322947934,1713537040020,-153.25469597,0.00042741,30]
[322947935,1713537040032,-3162.0,0.00043947,3]
[322947936,1713537040044,-219.736638,0.00044701,2]
[322947937,1713537040056,-209.043477,0.00044701,2]
[322947938,1713537040067,-155.43711806,0.0004471,4]
[322947939,1713537040079,-8735.90689153,0.00045,120]
[322947940,1713537040089,-5579.80205581,0.00045,60]
[322947941,1713537040101,-2000.0,0.00045,120]
[322947942,1713537040111,-1596.31,0.00045362,7]
[322947943,1713537040121,-159.309551,0.00045662,2]
[322947944,1713537040136,-153.25469597,0.00045796,30]
[322947945,1713537040148,-154.87609912,0.000459,4]
[322947947,1713537040159,-14999.999999,0.00045989,2]
[322947948,1713537040170,-403.7,0.00046851,7]
[322947949,1713537040182,-157.44846143,0.00047063,30]
[322947950,1713537040192,-545.314152,0.00047489,120]
[322947951,1713537040207,-300.16602744,0.00048,4]
[322947952,1713537040222,-1177.367,0.00048,60]
[322947953,1713537040234,-517.0,0.00048342,3]
[322947954,1713537040245,-5781.40776266,0.00049,120]
[322947955,1713537040255,-154.86062544,0.0005,30]
[322947956,1713537040265,-8536.05857705,0.0005,120]
[322947957,1713537040279,-2000.0,0.0005,120]
[322947958,1713537040288,-151.0,0.0005,120]
[322947959,1713537040301,-1000.0,0.000503,30]
[322947960,1713537040312,-153.25469597,0.0005037,60]
[322947961,1713537040322,-153.25469597,0.00050391,60]
[322947962,1713537040333,-219.736638,0.00050469,2]
[322947963,1713537040350,-209.043477,0.00050469,2]
[322947964,1713537040361,-1000.0,0.000506,30]
[322947965,1713537040372,-150.0,0.00051,85]
[322947966,1713537040383,-1008.0,0.00052,120]
[322947967,1713537040393,-17720.56970815,0.00052225,6]
[322947968,1713537040404,-17720.56970815,0.00052225,5]
[322947969,1713537040415,-17720.56970815,0.00052225,4]
[322947970,1713537040427,-4558.8605837,0.00052225,3]
[322947971,1713537040438,-153.25469597,0.00052479,60]
[322947972,1713537040452,-150.53610885,0.00052644,60]
[322947973,1713537040463,-153.25469597,0.0005293,60]
[322947974,1713537040475,-545.314152,0.00053425,120]
[322947975,1713537040486,-157.44846145,0.00053775,60]
[322947976,1713537040498,-153.25469597,0.0005378,60]
[322947977,1713537040510,-649.26009051,0.00054,120]
[322947978,1713537040522,-154.88894869,0.00054689,3]
[322947979,1713537040535,-952.54220647,0.00054694,5]
[322947980,1713537040550,-2830.93477962,0.00054694,5]
[322947981,1713537040563,-1916.43,0.00054694,5]
[322947982,1713537040718,-423.3179575,0.0002156,2]
[322947983,1713537040739,-1499.6820425,0.00054694,5]
[322947984,1713537040756,-898.23650041,0.00054694,5]
[322947985,1713537040767,-153.25469597,0.00054708,60]
[322947986,1713537040778,-12189.50880362,0.00054794,61]
[322947987,1713537040818,-5339.42828489,0.00054794,61]
[322947988,1713537040839,-9144.16100795,0.00054794,61]
[322947989,1713537040851,-500.0,0.00054794,120]
[322947990,1713537040863,-500.0,0.00054794,120]
[322947991,1713537040876,-515.02,0.00054794,120]
[322947992,1713537040890,-500.0,0.00054794,120]
[322947993,1713537040902,-500.0,0.00054794,120]
[322947994,1713537040915,-500.0,0.00054794,120]
[322947995,1713537040927,-500.0,0.00054794,120]
[322947996,1713537040940,-500.0,0.00054794,120]
[322947997,1713537040965,-500.0,0.00054794,120]
[322947998,1713537040980,-1089.41,0.00054794,120]
[322947999,1713537040993,-500.0,0.00054794,120]
[322948000,1713537041006,-1554.0,0.00054794,120]
[322948001,1713537041018,-440.26053516,0.00054794,120]
[322948002,1713537041037,-59.73946484,0.00054794,120]
[322948003,1713537041049,-500.0,0.00054794,120]
[322948004,1713537041061,-500.0,0.00054794,120]
[322948005,1713537041072,-500.0,0.00054794,120]
[322948006,1713537041084,-500.0,0.00054794,120]
[322948007,1713537041095,-500.0,0.00054794,120]
[322948008,1713537041106,-450.0,0.00054794,120]
[322948009,1713537041118,-541.79142755,0.00054794,120]
[322948010,1713537041129,-500.0,0.00054794,120]
[322948011,1713537041140,-740.81,0.00054794,120]
[322948012,1713537041151,-500.0,0.00054794,120]
[322948013,1713537041165,-532.4,0.00054794,120]
[322948014,1713537041177,-500.0,0.00054794,120]
[322948015,1713537041188,-190.37606006,0.00054794,120]
[322948016,1713537041204,-500.0,0.00054794,120]
[322948017,1713537041216,-500.0,0.00054794,120]
[322948018,1713537041230,-504.37624287,0.00054794,120]
[322948019,1713537041242,-165.93343071,0.00054794,120]
[322948020,1713537041256,-500.0,0.00054794,120]
[322948021,1713537041269,-500.0,0.00054794,120]
[322948022,1713537041281,-500.0,0.00054794,120]
[322948023,1713537041293,-500.0,0.00054794,120]
[322948024,1713537041305,-500.81267653,0.00054794,120]
[322948025,1713537041447,-500.0,0.00054794,120]
[322948026,1713537041457,-5128.39459349,0.00054794,3]
[322948027,1713537041472,-1981.30457622,0.00054794,3]
[322948028,1713537041487,-15129.23633956,0.00054794,3]
[322948141,1713537043777,-521.10599486,0.00025337,2]
[322948142,1713537043786,-46.17573367,0.00054784,3]
[322949551,1713537066483,1624.84100891,0.00020035,2]
[322949558,1713537107362,645.8192436,0.00020035,2]
[322949559,1713537126523,538.182703,0.00020035,2]
[322949560,1713537143434,280.39318826,0.00020035,2]
[322949561,1713537165369,280.39318826,0.00020035,2]
[322949562,1713537186514,280.39318826,0.00020035,2]
[322949563,1713537207403,280.39318826,0.00020035,2]
[322949564,1713537227376,280.39318826,0.00020035,2]
[322949565,1713537249405,280.39318826,0.00020035,2]
[322949566,1713537267396,280.39318826,0.00020035,2]
[322949567,1713537275104,325.03162237,0.00027699,120]
[322949568,1713537285379,280.39318826,0.00020035,2]
[322949569,1713537306462,280.39318826,0.00020035,2]
[322949570,1713537323384,280.39318826,0.00020035,2]
[322949571,1713537343389,67.64087044,0.00020035,2]
[322949572,1713537343421,357.52346494,0.00020035,2]
[322949574,1713537629806,186.50741,0.00021961,2]
[322949600,1713537819531,150.89437394,0.00022696,30]
[322949601,1713537819584,150.89437394,0.00022242,120]
[322949602,1713537828656,976.924839,0.00022212,2]
[322949603,1713537835563,250.0,0.00022212,2]
[322949604,1713537837595,356.567751,0.00021961,2]
[322949605,1713537837625,1954.88723459,0.00021961,2]
[322949606,1713537839458,280.39318826,0.00021961,2]
[322949607,1713537855445,280.39318826,0.00021961,2]
[322949608,1713537875448,407.94248887,0.00021961,2]
[322949609,1713537879864,200.0,0.0002221,2]
[322949610,1713537951418,1130.2267053,0.00022327,2]
[322949611,1713537975291,651.2494293,0.00020227,2]
[322949612,1713537986133,153.86232788,0.00022282,2]
[322949613,1713537995189,917.79325737,0.00022413,2]
[322949614,1713537995412,156.90851083,0.000225,2]
[322949615,1713538004015,564.09332327,0.000225,2]
[322949616,1713538004608,161.90783343,0.000225,2]
[322949617,1713538017632,165.938513,0.00022045,2]
[322949618,1713538019189,361.75151942,0.000225,2]
[322949619,1713538019532,157.63770947,0.000225,2]
[322949620,1713538020414,469.26939572,0.000225,2]
[322949621,1713538020978,2585.8857477,0.000225,2]
[322949622,1713538021885,189.04656977,0.000225,2]
[322949623,1713538022398,300.0,0.000225,2]
[322949624,1713538023045,549.90202406,0.000225,2]
[322949625,1713538023871,1089.6608071,0.000225,2]
[322949626,1713538026635,474.41717425,0.000225,2]
[322949627,1713538027082,154.90705577,0.000225,2]
[322949628,1713538038884,1201.28235502,0.000225,2]
[322949629,1713538041863,5797.00010816,0.000225,2]
[322949630,1713538158942,413.26180723,0.00022407,2]
[322949631,1713538181614,1199.82523717,0.00022401,2]
[322949664,1713538232817,-204.00475123,0.00022501,2]
[322949666,1713538232826,-549.90202406,0.00022502,2]
[322949668,1713538232835,-1089.6608071,0.00022502,2]
[322949670,1713538232852,-329.39846217,0.00022503,2]
[322949672,1713538232861,-564.09332327,0.00022503,2]
[322949675,1713538232871,-157.63770947,0.00022504,2]
[322949677,1713538232881,-4405.99951717,0.00022504,2]
[322949678,1713538232891,-300.0,0.00022507,2]
[322949680,1713538232900,-309.79865023,0.00022514,2]
[322949682,1713538232909,-188.6440377,0.00022623,2]
[322949684,1713538232918,-150.89437394,0.00023159,7]
[322949686,1713538232928,-178.15166906,0.000232,2]
[322949688,1713538232937,-178.15166904,0.000232,2]
[322949691,1713538232946,-178.15166904,0.000232,2]
[322949694,1713538232955,-150.89437394,0.00023632,4]
[322949696,1713538232964,-175.71153965,0.00023899,2]
[322949698,1713538232974,-1934.55003292,0.00023996,2]
[322949700,1713538232984,-539.43970623,0.00023996,2]
[322949702,1713538232993,-154.8915759,0.00023996,2]
[322949704,1713538233003,-1223.160001,0.00023996,2]
[322949706,1713538233012,-188.92869115,0.00023996,2]
[322949708,1713538233021,-2584.00603942,0.00023996,2]
[322949710,1713538233030,-361.42917162,0.00023996,2]
[322949712,1713538233039,-335.68213909,0.00023996,2]
[322949714,1713538233049,-154.98448297,0.00023996,2]
[322949717,1713538233058,-468.40473074,0.00023996,2]
[322949719,1713538233067,-4077.47868233,0.00023996,2]
[322949721,1713538233076,-575.21328934,0.00023996,2]
[322949723,1713538233091,-309.61302161,0.00023997,2]
[322949725,1713538233100,-500.0,0.00023997,2]
[322949727,1713538233109,-197.49038207,0.00023997,2]
[322949729,1713538233118,-500.0,0.00023997,2]
[322949730,1713538233127,-500.0,0.00023997,2]
[322949732,1713538233136,-500.0,0.00023997,2]
[322949734,1713538233145,-500.0,0.00023997,2]
[322949736,1713538233155,-500.0,0.00023997,2]
[322949738,1713538233165,-500.0,0.00023997,2]
[322949740,1713538233174,-500.0,0.00023997,2]
[322949743,1713538233183,-502.90084786,0.00023997,2]
[322949744,1713538233193,-882.33479028,0.00023998,2]
[322949747,1713538233203,-24153.63852002,0.00023998,2]
[322949749,1713538233211,-309.75219824,0.00023998,2]
[322949751,1713538233221,-400.0,0.00023998,2]
[322949753,1713538233230,-246.93293796,0.00023998,2]
[322949754,1713538233239,-156.01104929,0.00023998,2]
[322949756,1713538233248,-161.84978394,0.00023998,2]
[322949758,1713538233256,-206.9232172,0.00023999,2]
[322949760,1713538233266,-159.21651473,0.00023999,2]
[322949763,1713538233276,-15403.03812832,0.00023999,2]
[322949765,1713538233286,-500.0,0.00023999,2]
[322949767,1713538233295,-269.18705409,0.00023999,2]
[322949769,1713538233304,-500.0,0.00023999,2]
[322949771,1713538233314,-26135.54021424,0.00024,7]
[322949835,1713538238669,-1258.43171366,0.00024,7]
[322949836,1713538238679,-150.89437394,0.00024114,2]
[322949837,1713538238688,-200.0,0.00024658,15]
[322949838,1713538238698,-200.0,0.00024658,2]
[322949839,1713538238707,-420.0,0.00024758,2]
[322949840,1713538238716,-651.2494293,0.00025227,2]
[322949841,1713538238725,-150.89437394,0.00026794,2]
[322949842,1713538238734,-250.31565904,0.00026794,2]